Cogmind - Beta 16 @@@ ROGUE MODE // 2025.11.25 @ 23:13:50 // Winter2019/RPGLIKE Player: Rentaro Result: Destroyed by S-27 Virus with Autogun Performance ------------- Evolutions (3) 1500 Regions Visited (8) 1600 Robots Destroyed (0) 0 Value Destroyed (0) 0 Prototype IDs (23) 460 Alien Tech Used (0) 0 Bonus (934) 934 TOTAL SCORE: 4494 Bonus ------- Pacifist 634 Aligned with FarCom 300 Cogmind --------- Core Integrity 0/1450 Matter 121/300 Energy 99/100 System Corruption 6% Temperature Cool (0) Movement Core (50) Location -7/Factory Parts ------- > --- POWER (1) -------- (None) > --- PROPULSION (1) --- (None) > --- UTILITY (1) ------ (None) > --- WEAPON (1) ------- (None) > --- INVENTORY (0) ---- (None) Peak State ------------ None Favorites ----------- Power None Propulsion None Utility None Weapon None Build | -11 -10 -10 -10 -9 -8 -7 -7 -7 ------- Run | Yrd Mat Min Exi Min Mat Fac Was Fac Slots Evolved . | . . . . . . . . . Power . | . . . . . . . . . Propulsion . | . . . . . . . . . Utility . | . . . . . . . . . Weapon . | . . . . . . . . . Parts Attached . | . . . . . . . . . Power . | . . . . . . . . . Engine . | . . . . . . . . . Core . | . . . . . . . . . Reactor . | . . . . . . . . . Propulsion . | . . . . . . . . . Treads . | . . . . . . . . . Leg . | . . . . . . . . . Wheel . | . . . . . . . . . Hover . | . . . . . . . . . Flight . | . . . . . . . . . Utility . | . . . . . . . . . Device . | . . . . . . . . . Storage . | . . . . . . . . . Processor . | . . . . . . . . . Hackware . | . . . . . . . . . Protection . | . . . . . . . . . Artifact . | . . . . . . . . . Weapon . | . . . . . . . . . Energy Gun . | . . . . . . . . . Energy Cannon . | . . . . . . . . . Ballistic Gun . | . . . . . . . . . Ballistic Cannon . | . . . . . . . . . Launcher . | . . . . . . . . . Special Weapon . | . . . . . . . . . Impact Weapon . | . . . . . . . . . Slashing Weapon . | . . . . . . . . . Piercing Weapon . | . . . . . . . . . Special Melee Weapon . | . . . . . . . . . Unidentified Prototypes . | . . . . . . . . . Parts Lost . | . . . . . . . . . Power . | . . . . . . . . . Propulsion . | . . . . . . . . . Utility . | . . . . . . . . . Weapon . | . . . . . . . . . Highest Loss Streak . | . . . . . . . . . To Critical Strikes . | . . . . . . . . . Average Backups . | . . . . . . . . . Power . | . . . . . . . . . Propulsion . | . . . . . . . . . Utility . | . . . . . . . . . Weapon . | . . . . . . . . . Tool/Special . | . . . . . . . . . Unused Backups . | . . . . . . . . . Power . | . . . . . . . . . Propulsion . | . . . . . . . . . Utility . | . . . . . . . . . Weapon . | . . . . . . . . . Tool/Special . | . . . . . . . . . Average Slot Usage (%) . | . . . . . . . . . Peak Build Rating . | . . . . . . . . . Average Rating . | . . . . . . . . . On Entrance . | . . . . . . . . . Avg Prop Armor Cover (%) . | . . . . . . . . . Naked Turns 1370 | . 25 142 118 118 156 410 51 350 Heaviest Build . | . . . . . . . . . Greatest Support 3 | 3 3 3 3 3 3 3 3 3 Greatest Overweight (x) . | . . . . . . . . . Average Overweight (x) . | . . . . . . . . . Largest Inventory Capacity . | . . . . . . . . . Average Capacity . | . . . . . . . . . Most Carried . | . . . . . . . . . Average Carried . | . . . . . . . . . Final Capacity . | . . . . . . . . . Final Carried . | . . . . . . . . . Class Distribution -------------------- 68% | Hacker-Mutant 31% | Mutant Dominant Class ---------------- Mutant | -10/Materials Mutant | -10/Mines Mutant | -10/Exiles Mutant | -9/Mines Hacker-Mutant | -8/Materials Hacker-Mutant | -7/Factory Hacker-Mutant | -7/Waste Hacker-Mutant | -7/Factory Resources | -11 -10 -10 -10 -9 -8 -7 -7 -7 ----------- Run | Yrd Mat Min Exi Min Mat Fac Was Fac Matter Collected 65 | 65 . . . . . . . . Remotely . | . . . . . . . . . Salvage Created . | . . . . . . . . . Parts . | . . . . . . . . . Haulers Intercepted . | . . . . . . . . . Recyclers Shooed . | . . . . . . . . . Parts Field Recycled . | . . . . . . . . . Retrieved Matter . | . . . . . . . . . Parts Self-Destructed . | . . . . . . . . . Prevented . | . . . . . . . . . Parts Restored . | . . . . . . . . . Kills | -11 -10 -10 -10 -9 -8 -7 -7 -7 ------- Run | Yrd Mat Min Exi Min Mat Fac Was Fac Combat Hostiles Destroyed . | . . . . . . . . . Classes Destroyed . | . . . . . . . . . Best Kill Streak . | . . . . . . . . . Combat Bots Only . | . . . . . . . . . Max Kills in Single Turn . | . . . . . . . . . Gunslinging . | . . . . . . . . . Exploded . | . . . . . . . . . Melee . | . . . . . . . . . Uniques/NPCs Destroyed . | . . . . . . . . . Combat | -11 -10 -10 -10 -9 -8 -7 -7 -7 -------- Run | Yrd Mat Min Exi Min Mat Fac Was Fac Hostile Shots Fired 202 | . . 6 . . 90 98 . 8 Missed 81 | . . . . . 32 45 . 4 Hits 121 | . . 6 . . 58 53 . 4 Melee 5 | . . . . . 5 . . . Projectile 116 | . . 6 . . 53 53 . 4 AOE 2 | . . . . . 2 . . . Critical Strikes 5 | . . . . . 4 . . 1 Damage Taken 1454 | . . 78 . . 827 499 . 50 Core 1454 | . . 78 . . 827 499 . 50 Absorbed by Shields . | . . . . . . . . . Ignored by Resistances 313 | . . . . . 189 109 . 15 Core Remaining (%) 63 | 100 . . . 87 4 . . . Volleys Fired . | . . . . . . . . . Largest . | . . . . . . . . . Hottest . | . . . . . . . . . Shots Fired . | . . . . . . . . . Gun . | . . . . . . . . . Cannon . | . . . . . . . . . Launcher . | . . . . . . . . . Special . | . . . . . . . . . Kinetic . | . . . . . . . . . Thermal . | . . . . . . . . . Explosive . | . . . . . . . . . Electromagnetic . | . . . . . . . . . Robot Hit Streak . | . . . . . . . . . Robot Miss Streak . | . . . . . . . . . Penetration Max . | . . . . . . . . . Secondary Targets . | . . . . . . . . . Shots Hit Robots . | . . . . . . . . . Core Hits . | . . . . . . . . . Critical Kills . | . . . . . . . . . Critical Parts Destroyed . | . . . . . . . . . Critical Strikes . | . . . . . . . . . Melee Attacks . | . . . . . . . . . Impact . | . . . . . . . . . Slashing . | . . . . . . . . . Piercing . | . . . . . . . . . Sneak Attacks . | . . . . . . . . . Combat Hostiles . | . . . . . . . . . Follow-up Attacks . | . . . . . . . . . Damage Inflicted . | . . . . . . . . . Guns . | . . . . . . . . . Cannons . | . . . . . . . . . Explosions . | . . . . . . . . . Melee . | . . . . . . . . . Ramming . | . . . . . . . . . Kinetic . | . . . . . . . . . Thermal . | . . . . . . . . . Explosive . | . . . . . . . . . Electromagnetic . | . . . . . . . . . Impact . | . . . . . . . . . Slashing . | . . . . . . . . . Piercing . | . . . . . . . . . Highest Corruption 6 | . . . . . . 6 6 6 Average Corruption 5 | . . . . . . 3 6 6 Corruption Purged . | . . . . . . . . . Corruption Blocked . | . . . . . . . . . Effects 9 | . . . . . . . . 9 Message Errors 1 | . . . . . . . . 1 Matter Fused 5 | . . . . . . . . 5 Heat Flow Errors 1 | . . . . . . . . 1 Energy Discharges 2 | . . . . . . . . 2 Overload Shots . | . . . . . . . . . Overflow Damage . | . . . . . . . . . Projectiles . | . . . . . . . . . Explosions . | . . . . . . . . . Melee . | . . . . . . . . . Knockbacks . | . . . . . . . . . Impact . | . . . . . . . . . Kinetic . | . . . . . . . . . Secondary . | . . . . . . . . . Self-Inflicted Damage . | . . . . . . . . . Shots . | . . . . . . . . . Rammed . | . . . . . . . . . Targets Rammed . | . . . . . . . . . Kicked . | . . . . . . . . . Crushed . | . . . . . . . . . Highest Temperature 244 | . . . . . 29 . . 244 Average Temperature 74 | . . . . . 11 . . 131 Received Heat Transfer 648 | . . 42 . . 513 93 . . Siege Activations . | . . . . . . . . . Martial Activations . | . . . . . . . . . Shielding Activations . | . . . . . . . . . Robots Disrupted . | . . . . . . . . . Combat Hostiles . | . . . . . . . . . Robots Corrupted . | . . . . . . . . . Combat Hostiles . | . . . . . . . . . Parts Fried . | . . . . . . . . . Impact Corruptions . | . . . . . . . . . Robots Melted . | . . . . . . . . . Combat Hostiles . | . . . . . . . . . Parts Melted . | . . . . . . . . . Heat Transferred . | . . . . . . . . . Parts Sabotaged . | . . . . . . . . . Parts Stolen . | . . . . . . . . . Parts Stripped . | . . . . . . . . . Power Chain Reactions 1 | . . . . . . 1 . . Alert | -11 -10 -10 -10 -9 -8 -7 -7 -7 ------- Run | Yrd Mat Min Exi Min Mat Fac Was Fac Maximum Alert Level 1 | . . . . . 1 . . . Low Security (%) 99 | 100 100 100 . 100 99 100 100 100 Level 1 . | . . . . . . . . . Level 2 . | . . . . . . . . . Level 3 . | . . . . . . . . . Level 4 . | . . . . . . . . . Level 5 . | . . . . . . . . . High Security . | . . . . . . . . . Max Security . | . . . . . . . . . Peak Influence 208 | . . 30 . . 208 153 50 22 Initial 94 | . . . . . . 94 50 21 Average 25 | . . 5 . . 38 53 41 4 Influence Increases 584 | . . 30 . . 268 249 . 37 Successful Hack 69 | . . . . . 13 34 . 22 Select Force Hacks 50 | . . . . . . 50 . . Partial Spotted 30 | . . . . . . 15 . 15 Lose Combat Pursuer 435 | . . 30 . . 255 150 . . Influence Decreases 584 | . . 30 . . 60 312 115 67 Entered New Map 218 | . . . . . . 114 95 9 Time Decay 366 | . . 30 . . 60 198 20 58 Squads Dispatched 10 | . . . . . 3 5 . 2 Investigation 4 | . . . . . 1 2 . 1 Extermination 3 | . . . . . . 2 . 1 Reinforcement 3 | . . . . . 2 1 . . Assault . | . . . . . . . . . Garrison . | . . . . . . . . . Intercept . | . . . . . . . . . Searches Triggered . | . . . . . . . . . Construction Impeded . | . . . . . . . . . Haulers Reinforced . | . . . . . . . . . Active Scanning Responses . | . . . . . . . . . Cargo Convoy Interrupts . | . . . . . . . . . Stealth | -11 -10 -10 -10 -9 -8 -7 -7 -7 --------- Run | Yrd Mat Min Exi Min Mat Fac Was Fac Distress Signals 4 | . . . . . 3 1 . . Communications Jammed . | . . . . . . . . . Distress Signals . | . . . . . . . . . Times Spotted 54 | . 2 2 . . 19 19 6 6 Peak Tracking Total 16 | . 2 2 . . 16 8 6 5 Tactical Retreats 10 | . . 1 . . 3 6 . . Traps | -11 -10 -10 -10 -9 -8 -7 -7 -7 ------- Run | Yrd Mat Min Exi Min Mat Fac Was Fac Traps Triggered 6 | . . . . . 1 2 . 3 Indirectly . | . . . . . . . . . Trap Hack Attempts . | . . . . . . . . . Triggered . | . . . . . . . . . Disarmed . | . . . . . . . . . Reprogrammed . | . . . . . . . . . Reused . | . . . . . . . . . Traps Extracted . | . . . . . . . . . Installed . | . . . . . . . . . Triggered . | . . . . . . . . . Machines | -11 -10 -10 -10 -9 -8 -7 -7 -7 ---------- Run | Yrd Mat Min Exi Min Mat Fac Was Fac Machines Disabled . | . . . . . . . . . Max in Single Turn . | . . . . . . . . . Machines Repaired . | . . . . . . . . . Machines Dismantled . | . . . . . . . . . Machines Sabotaged . | . . . . . . . . . Overloaded Fab Kills 2 | . . . . . . 2 . . Hacking | -11 -10 -10 -10 -9 -8 -7 -7 -7 --------- Run | Yrd Mat Min Exi Min Mat Fac Was Fac Machines Accessed 7 | . . . 1 . 1 4 . 1 Terminals 5 | . . . . . 1 3 . 1 Fabricators 1 | . . . . . . 1 . . Repair Stations . | . . . . . . . . . Recycling Units . | . . . . . . . . . Scanalyzers . | . . . . . . . . . Garrison Access . | . . . . . . . . . Total Hacks 17 | . . . 1 . 4 10 . 2 Successful 11 | . . . 1 . 3 5 . 2 Failed 6 | . . . . . 1 5 . . Catastrophic 1 | . . . . . 1 . . . Database Lockouts . | . . . . . . . . . Manual 17 | . . . 1 . 4 10 . 2 Terminals 15 | . . . . . 4 9 . 2 Fabricators 1 | . . . . . . 1 . . Repair Stations . | . . . . . . . . . Recycling Units . | . . . . . . . . . Scanalyzers . | . . . . . . . . . Garrison Access . | . . . . . . . . . Terminal Hacks 3 | . . . 1 . 1 1 . . Level Access Points 2 | . . . . . 1 1 . . Proto ID Catalog 1 | . . . 1 . . . . . Fabricator Hacks . | . . . . . . . . . Repair Station Hacks . | . . . . . . . . . Recycling Unit Hacks . | . . . . . . . . . Scanalyzer . | . . . . . . . . . Garrison Access Hacks . | . . . . . . . . . Unauthorized Hacks 8 | . . . . . 2 4 . 2 Terminals 7 | . . . . . 2 3 . 2 Assimilate 3 | . . . . . 1 1 . 1 Botnet 4 | . . . . . 1 2 . 1 Fabricators 1 | . . . . . . 1 . . Overload 1 | . . . . . . 1 . . Repair Stations . | . . . . . . . . . Recycling Units . | . . . . . . . . . Scanalyzers . | . . . . . . . . . Garrison Access . | . . . . . . . . . Data Cores Recovered . | . . . . . . . . . Used . | . . . . . . . . . Hacking Detections 5 | . . . . . 1 3 . 1 Full Trace Events 2 | . . . . . 1 1 . . Feedback Events . | . . . . . . . . . Feedback Blocked . | . . . . . . . . . Robot Schematics Acquired . | . . . . . . . . . Robots Built . | . . . . . . . . . Authchips . | . . . . . . . . . Time . | . . . . . . . . . Total Robot Build Rating . | . . . . . . . . . Part Schematics Acquired . | . . . . . . . . . Parts Built . | . . . . . . . . . Authchips . | . . . . . . . . . Time . | . . . . . . . . . Total Part Build Rating . | . . . . . . . . . Part Studies Acquired . | . . . . . . . . . Parts Repaired . | . . . . . . . . . Time . | . . . . . . . . . Parts Recycled . | . . . . . . . . . Recycled Matter . | . . . . . . . . . Retrieved Matter . | . . . . . . . . . Retrieved Components . | . . . . . . . . . Parts Scanalyzed . | . . . . . . . . . Part Schematics Acquired . | . . . . . . . . . Parts Damaged . | . . . . . . . . . Bothacking | -11 -10 -10 -10 -9 -8 -7 -7 -7 ------------ Run | Yrd Mat Min Exi Min Mat Fac Was Fac Used RIF Installer . | . . . . . . . . . Robots Hacked . | . . . . . . . . . Non-combat . | . . . . . . . . . Combat . | . . . . . . . . . Robot Hacks Applied . | . . . . . . . . . Relay Couplers Released . | . . . . . . . . . Fabnet Peak Effective % . | . . . . . . . . . Robots Rewired . | . . . . . . . . . Allies Hacked . | . . . . . . . . . Hacks Repelled . | . . . . . . . . . Allies | -11 -10 -10 -10 -9 -8 -7 -7 -7 -------- Run | Yrd Mat Min Exi Min Mat Fac Was Fac Total Allies 4 | . . 3 . . . . . 1 Largest Group 3 | . . 3 . . . . . 1 Highest-Rated Group 83 | . . 83 . . . . . 26 Highest-Rated Ally 31 | . . 31 . . . . . 26 Total Orders . | . . . . . . . . . Ally Attacks . | . . . . . . . . . Total Damage . | . . . . . . . . . Kills . | . . . . . . . . . Allies Corrupted . | . . . . . . . . . Allies Melted . | . . . . . . . . . Intel | -11 -10 -10 -10 -9 -8 -7 -7 -7 ------- Run | Yrd Mat Min Exi Min Mat Fac Was Fac Active Infowar (turns) . | . . . . . . . . . Robot Analysis Total . | . . . . . . . . . Derelict Logs Recovered . | . . . . . . . . . Drone Launches . | . . . . . . . . . Drone Recoveries . | . . . . . . . . . Exploration | -11 -10 -10 -10 -9 -8 -7 -7 -7 ------------- Run | Yrd Mat Min Exi Min Mat Fac Was Fac Turns Passed 1379 | 9 25 142 118 118 156 410 51 350 Spaces Moved 2545 | 18 49 275 236 235 227 814 102 589 Core 2545 | 18 49 275 236 235 227 814 102 589 Treads . | . . . . . . . . . Legs . | . . . . . . . . . Wheels . | . . . . . . . . . Hover . | . . . . . . . . . Flight . | . . . . . . . . . Fastest Speed 50 | 50 50 50 50 50 50 50 50 50 Average Speed 50 | 50 50 50 50 50 50 50 50 50 Slowest Speed 50 | 50 50 50 50 50 50 50 50 50 Overloaded Moves . | . . . . . . . . . Propulsion Burnouts . | . . . . . . . . . Robots Hopped . | . . . . . . . . . Potential Cave-ins . | . . . . . . . . . Cave-ins Triggered . | . . . . . . . . . Exploration Rate (%) 35 | 3 14 55 60 50 17 26 77 15 Regions Visited 8 Branch Regions 3 Pre-discovered Areas 1 | . . . . 1 . . . . Known Exits Taken 1 | . . . . . 1 . . . Unknown Exits Taken 5 | 1 1 1 1 1 . . . . Scrap Searched . | . . . . . . . . . Spaces Dug . | . . . . . . . . . Terrain Destroyed . | . . . . . . . . . Melee . | . . . . . . . . . Projectile . | . . . . . . . . . AOE . | . . . . . . . . . Terrain Rammed . | . . . . . . . . . Walls Destroyed . | . . . . . . . . . Machines Disabled . | . . . . . . . . . Actions | -11 -10 -10 -10 -9 -8 -7 -7 -7 --------- Run | Yrd Mat Min Exi Min Mat Fac Was Fac Total 2642 | 17 48 278 235 234 268 817 101 644 Wait 104 | . . 4 . . 42 3 . 55 Move 2538 | 17 48 274 235 234 226 814 101 589 Hop . | . . . . . . . . . Pick Up . | . . . . . . . . . Fast Attach . | . . . . . . . . . Attach . | . . . . . . . . . Detach . | . . . . . . . . . Swap . | . . . . . . . . . Drop . | . . . . . . . . . Fire . | . . . . . . . . . Melee . | . . . . . . . . . Ram . | . . . . . . . . . Kick . | . . . . . . . . . Crush . | . . . . . . . . . Escape Stasis . | . . . . . . . . . Rewire . | . . . . . . . . . Trap . | . . . . . . . . . Miscellaneous . | . . . . . . . . . Route ------- -11/Scrapyard -10/Materials -10/Mines (discovered 4 exits: [*Mat x2] / *Exi / [*Sub]) -10/Exiles (discovered 2 exits: [*Min x2]) -9/Mines -8/Materials (discovered 3 exits: *Fac x3) -7/Factory (discovered 4 exits: *Fac x4) -7/Waste -7/Factory History --------- Turn | Location | Event 4 | -11/Scrapyard | Discovered new exit (range 14) 10 | -11/Scrapyard | Entered Materials 24 | -10/Materials | Discovered new exit (range 7) 35 | -10/Materials | Entered Mines 120 | -10/Mines | Received a Mining Laser from a helpful Derelict 139 | -10/Mines | Discovered new exit (range 12) 159 | -10/Mines | Discovered new exit (range 12) 166 | -10/Mines | Discovered new exit (range 9) 174 | -10/Mines | Deemed a non-threat by the Exiles lab entrance 175 | -10/Mines | Discovered new exit (range 5) 177 | -10/Mines | Entered Exiles 184 | -10/Exiles | Discovered new exit (range 15) 193 | -10/Exiles | Met 8R-AWN 201 | -10/Exiles | Met EX-HEX 215 | -10/Exiles | Met EX-BIN 222 | -10/Exiles | Aligned with FarCom system 223 | -10/Exiles | Given EX-Vault access code 237 | -10/Exiles | Opened EX-Vault 250 | -10/Exiles | Warned to stay clear of 0b10 Research branches 258 | -10/Exiles | Exiles lab attacked by MAIN.C 289 | -10/Exiles | Discovered new exit (range 11) 295 | -10/Exiles | Entered Mines 305 | -9/Mines | Build established: Mutant 326 | -9/Mines | Learned location of Storage (-9) 408 | -9/Mines | Discovered new exit (range 9) 413 | -9/Mines | Entered Materials 415 | -8/Materials | Reached level 2 442 | -8/Materials | Reached level 3 442 | -8/Materials | Identified exit to Factory 525 | -8/Materials | Core integrity fell below 50% 532 | -8/Materials | Core integrity fell below 20% 569 | -8/Materials | Entered Factory 570 | -7/Factory | Core integrity fell below 50% 570 | -7/Factory | Core integrity fell below 20% 571 | -7/Factory | Reached level 4 742 | -7/Factory | Build established: Hacker-Mutant 848 | -7/Factory | Identified exit to Factory 979 | -7/Factory | Sucked down chute 979 | -7/Factory | Entered Waste 987 | -7/Waste | Spotted C-40 Crusher 987 | -7/Waste | Spotted C-40 Crusher 991 | -7/Waste | Spotted C-40 Crusher 992 | -7/Waste | Spotted C-40 Crusher 999 | -7/Waste | Spotted C-40 Crusher 999 | -7/Waste | Spotted C-40 Crusher 1026 | -7/Waste | Discovered new exit (range 10) 1030 | -7/Waste | Entered Factory 1380 | -7/Factory | Destroyed by S-27 Virus with Autogun Last Messages --------------- Testing... Terminal linked with 0 systems. Awaiting botnet instructions. 01296_ K-01 Serf cleans the Terminal. 01297_ TNQUK YGGJDQ#N0IJO#LYTV |RN6| 01298_ Triggered Blade Trap. 01298_ Massive razor-sharp blades shoot up from within the floor. 01312_ Administrator 4a reveals location of hidden door. 01318_ Administrator 4a reveals location of Blade Trap. 01322_ Administrator 4a reveals location of hidden door. 01326_ System corrupted: Heat flow error (+269). 01348_ System corrupted: Matter fused (-9). 01369_ System corrupted: Matter fused (-8). 01373_ Triggered Alarm Trap. 01373_ An alarm sounds. 01373_ ALERT: Alarm triggered, dispatching investigation squad. 01374_ O-24 Administrator: "IFF HANDSHAKE FAILED. SECURING TERMINAL." Map ----- +----------------------------------------------------+ | #????????????????????????????????????????????????? | | #????????????????????????????????????????????????? | | #????????????????????????????????????????????????? | | #??????##????????????????????????????????????????? | | #??????# ???????????????????????????????????????? | | #??????# ???????????????????????????????????????? | | #??????# ????""?????????????????????????????????? | | #??????# ""? ""?????????????????????????????????? | | #??????# ??#?????????????????????????????? | | ######## """ """ #?????????????????????????????? | | # """ """ #?????????????????????????????? | | # """ """ #?????????????????????????????? | | # ??????????????????????????????? | | # ????????????????????????????????? | | # ??????????????????????????????????? | | # ?w??????????????????????????????????? | | ###+##################????????????????????? | | #????????????????????? | | #????????????????????? | | """" """" """" """" #????????????????????? | | """" """" """" """" #????????????????????? | | """" """" """" """" #????????????????????? | | s #?o??????????????????? | | """" """" """" """" """"s #????????????????????? | | """" """" """" """" """" # "" ????????????????? | | """" """" """" """"s""""@ + """????????????????? | | #????????????????????? | | #????????????????????? | | k #????????????????????? | | ###########+#######+#########????????????????????? | | #????????????????????????????????????????????????? | | ##???????????????????????????????????????????????? | | #???????????????????????????????????????????????? | | #???????????????????????????????????????????????? | | #???????????????????????????????????????????????? | | #???????????????????????????????????????????????? | | !#???????????????????????????????????????????????? | | #???????????????????????????????????????????????? | | ##???????????????????????????????????????????????? | | ?????????????????????????????????????????????????? | | ?????????????????????????????????????????????????? | | ?????????????????????????????????????????????????? | | ?????????????????????????????????????????????????? | | ?????????????????????????????????????????????????? | | ?????????????????????????????????????????????????? | | ?????????????????????????????????????????????????? | | ?????????????????????????????????????????????????? | | ?????????????????????????????????????????????????? | | ?????????????????????????????????????????????????? | | ?????????????????????????????????????????????????? | +----------------------------------------------------+ Best States ------------- Heat Dissipation 25 Energy Generation 5 Energy Capacity 100 Matter Stores 165 Matter Capacity 300 Sight Range 16 Terrain Scan Density 10 Resistance: KI 20 Resistance: TH 20 Evasion (%) 50 Offensive Hacking 20 Item Schematics ----------------- None Robot Schematics ------------------ None Fabricated ------------ Nothing Repaired ---------- Nothing Studied --------- None Alien Tech Used ----------------- None Achievements -------------- None Challenges ------------ None RPGLIKE | -11 -10 -10 -10 -9 -8 -7 -7 -7 --------- Run | Yrd Mat Min Exi Min Mat Fac Was Fac Levels Raised 3 | . . . . . 2 1 . . XP Earned 8462 | 3000 . 500 350 635 1747 1920 200 110 XP Spent 7385 | . . 2850 . . 3135 1400 . . Upgrades 29 | . . 7 . . 12 10 . . Core Integrity 17 | . . . . . 7 10 . . Hack Attack % 4 | . . . . . 4 . . . KI Resistance % 4 | . . 3 . . 1 . . . TH Resistance % 4 | . . 4 . . . . . . Protomatter Created . | . . . . . . . . . Protomatter Decayed 50 | . . . . . . 50 . . Game ------ Seed TimingLightningPick Manual? 0 Play Time 00:18:15 Cumulative 225.2 hours Start 2025.11.25 @ 22:57:38 End 2025.11.25 @ 23:13:50 Sessions 1 Manual Loads 0 Difficulty Rogue Special Mode Winter2019/RPGLIKE Game No. 68 Rogue 68 Adventurer 0 Explorer 0 Win Type - Total 9 Types 2/1/2/3/0/1/0/0/0/0 Lore% 66 Gallery% 62 Achievement% 62 Wizard Run 0 Options --------- Layout 2 ASCII 0 Keyboard 0 Movement Mouse Keybinds 1 Fullscreen 2 Font 20/X11 Map View 64x51 Zoom Use 0% Tactical HUD 1 Map Filters NONE Filters NONE Steam 1 RUN: 7d77d032-338a-41d9-9767-50fbdf70ee18